fUSD/lending_fUSD_20250206
["ID","MTS","AMOUNT","RATE_DAILY","PERIOD"]
[351980343,1738866670047,-873.47,0.00017666,2]
[351980344,1738866670057,-500.0,0.00017666,2]
[351980345,1738866670067,-811.69,0.00017666,2]
[351980346,1738866670077,-500.0,0.00017666,2]
[351980347,1738866670087,-2078.54,0.00017666,2]
[351980348,1738866670097,-992.68,0.00017666,2]
[351980349,1738866670107,-833.73,0.00017666,2]
[351980350,1738866670117,-1083.2,0.00017666,2]
[351980351,1738866670127,-1317.18,0.00017666,2]
[351980352,1738866670136,-700.98,0.00017666,2]
[351980353,1738866670145,-2735.04,0.00017666,2]
[351980354,1738866670155,-500.0,0.00017666,2]
[351980355,1738866670165,-960.07,0.00017666,2]
[351980356,1738866670174,-589.9,0.00017666,2]
[351980357,1738866670183,-1424.1,0.00017666,2]
[351980358,1738866670193,-368.91779767,0.00017666,2]
[351980359,1738866670426,-384.47,0.00017666,2]
[351980360,1738866670446,-1511.53,0.0001726,2]
[351980361,1738866670456,-385.22220233,0.00017666,2]
[351980362,1738866670466,-1582.06,0.00017666,2]
[351980363,1738866670476,-803.99,0.00017666,2]
[351980364,1738866670486,-722.34,0.00017666,2]
[351980365,1738866670496,-500.0,0.00017666,2]
[351980366,1738866670506,-30.25814705,0.00017666,2]
[351980367,1738866670845,-500.0,9.999e-05,2]
[351980368,1738866670935,-500.0,0.00016438,2]
[351980369,1738866670945,-500.0,0.0001657,2]
[351980370,1738866670955,-500.0,0.00016575,2]
[351980371,1738866670965,-500.0,0.00016707,2]
[351980372,1738866670975,-500.0,0.00016712,2]
[351980373,1738866670985,-500.0,0.00016844,2]
[351980374,1738866670995,-739.05,0.00016981,2]
[351980375,1738866671005,-500.0,0.00016981,2]
[351980376,1738866671017,-739.05,0.00017118,2]
[351980377,1738866671027,-500.0,0.00017118,2]
[351980378,1738866671037,-739.05,0.00017255,2]
[351980379,1738866671047,-739.05,0.00017392,2]
[351980380,1738866671057,-1511.53,0.00017397,2]
[351980381,1738866671067,-739.05,0.00017529,2]
[351980382,1738866671077,-1511.53,0.00017534,2]
[351980383,1738866671090,-469.74185295,0.00017666,2]
[351980384,1738866671100,-936.37,0.00017666,2]
[351980385,1738866671110,-1029.92,0.00017666,2]
[351980386,1738866671120,-664.0,0.00017666,2]
[351980387,1738866671131,-1836.69,0.00017666,2]
[351980388,1738866671142,-700.04,0.00017666,2]
[351980389,1738866671152,-500.0,0.00017666,2]
[351980390,1738866671162,-2524.54,0.00017666,2]
[351980391,1738866671172,-500.0,0.00017666,2]
[351980392,1738866671182,-426.43233896,0.00017666,2]
[351980393,1738866671192,-500.0,0.00017666,2]
[351980394,1738866671202,-500.0,0.00017666,2]
[351980395,1738866671211,-1649.27,0.00017666,2]
[351980396,1738866671221,-500.0,0.00017666,2]
[351980397,1738866671231,-843.75,0.00017666,2]
[351980398,1738866671242,-1110.4,0.00017666,2]
[351980399,1738866671252,-1353.54,0.00017666,2]
[351980400,1738866671264,-842.77,0.00017666,2]
[351980401,1738866671274,-908.69,0.00017666,2]
[351980402,1738866671285,-587.68,0.00017666,2]
[351980403,1738866671295,-1257.73,0.00017666,2]
[351980404,1738866671305,-2630.17,0.00017666,2]
[351980405,1738866671315,-1528.25,0.00017666,2]
[351980406,1738866671325,-1242.52,0.00017666,2]
[351980407,1738866671335,-1407.68,0.00017666,2]
[351980408,1738866671345,-877.83,0.00017666,2]
[351980409,1738866671355,-1455.99,0.00017666,2]
[351980410,1738866671364,-500.0,0.00017666,2]
[351980411,1738866671375,-1199.99,0.00017666,2]
[351980412,1738866671385,-500.0,0.00017666,2]
[351980413,1738866671395,-739.05,0.00017666,2]
[351980414,1738866671404,-200.0,0.00017667,2]
[351980415,1738866671414,-200.0,0.00017667,2]
[351980416,1738866671424,-580.86,0.00017667,2]
[351980417,1738866671434,-500.0,0.00017667,2]
[351980418,1738866671444,-1233.51,0.00017667,2]
[351980419,1738866671454,-500.0,0.00017667,2]
[351980420,1738866671464,-528.44,0.00017667,2]
[351980421,1738866671473,-500.0,0.00017667,2]
[351980422,1738866671483,-590.09,0.00017667,2]
[351980423,1738866671494,-200.0,0.00017667,2]
[351980424,1738866671504,-1394.17526,0.00017667,2]
[351980425,1738866671516,-200.0,0.00017667,2]
[351980426,1738866671526,-851.34,0.00017669,2]
[351980427,1738866671537,-500.0,0.00017669,2]
[351980428,1738866671547,-500.0,0.0001767,2]
[351980429,1738866671557,-500.0,0.0001767,2]
[351980430,1738866671567,-500.0,0.0001767,2]
[351980431,1738866671577,-500.0,0.0001767,2]
[351980432,1738866671587,-500.0,0.0001767,2]
[351980433,1738866671598,-629.41,0.00017671,2]
[351980434,1738866671608,-1212.13,0.00017671,2]
[351980435,1738866671618,-2191.68,0.00017671,2]
[351980436,1738866671628,-1150.67,0.00017671,2]
[351980437,1738866671638,-1194.7,0.00017671,2]
[351980438,1738866671647,-1670.96,0.00017671,2]
[351980439,1738866671657,-2394.38,0.00017671,2]
[351980440,1738866671668,-1909.88,0.00017671,2]
[351980441,1738866671678,-879.69,0.00017671,2]
[351980442,1738866671689,-1406.63,0.00017671,2]
[351980443,1738866671699,-500.0,0.00017671,2]
[351980444,1738866671709,-1626.57,0.00017671,2]
[351980445,1738866671720,-1052.49,0.00017671,2]
[351980446,1738866671730,-2439.5,0.00017671,2]
[351980447,1738866671742,-1556.35,0.00017671,2]
[351980448,1738866671754,-1571.46,0.00017671,2]
[351980449,1738866671768,-3154.44,0.00017671,2]
[351980450,1738866671780,-500.0,0.00017671,2]
[351980451,1738866671794,-1374.49,0.00017671,2]
[351980452,1738866671807,-781.28,0.00017671,2]
[351980453,1738866671817,-962.38,0.00017671,2]
[351980454,1738866671828,-500.0,0.00017671,2]
[351980455,1738866671840,-666.23,0.00017671,2]
[351980456,1738866671851,-500.0,0.00017671,2]
[351980457,1738866671862,-876.98,0.00017671,2]
[351980458,1738866671872,-823.01,0.00017671,2]
[351980459,1738866671883,-752.31,0.00017671,2]
[351980460,1738866671894,-1511.53,0.00017671,2]
[351980461,1738866671904,-150.0,0.00017675,2]
[351980462,1738866671914,-150.0,0.00017691,2]
[351980463,1738866671925,-150.0,0.0001771,2]
[351980464,1738866671936,-771.13806271,0.00017721,2]
[351980465,1738866671946,-416.89297717,0.00017721,2]
[351980466,1738866671956,-1000.0,0.00017776,2]
[351980467,1738866671966,-3070.1,0.000178,2]
[351980468,1738866671978,-1000.0,0.000178,6]
[351980469,1738866671989,-500.0,0.00017802,2]
[351980470,1738866671999,-500.0,0.00017802,2]
[351980471,1738866672010,-500.0,0.00017802,2]
[351980472,1738866672021,-500.0,0.00017802,2]
[351980473,1738866672031,-511.45,0.00017802,2]
[351980474,1738866672042,-500.0,0.00017802,2]
[351980475,1738866672052,-500.0,0.00017802,2]
[351980476,1738866672062,-500.0,0.00017802,2]
[351980477,1738866672073,-592.64,0.00017802,2]
[351980478,1738866672083,-500.0,0.00017802,2]
[351980479,1738866672093,-417.70697378,0.00017802,2]
[351980480,1738866672103,-500.0,0.00017802,2]
[351980481,1738866672113,-500.0,0.00017802,2]
[351980482,1738866672123,-500.0,0.00017802,2]
[351980483,1738866672133,-500.0,0.00017802,2]
[351980484,1738866672143,-179.09702971,0.00017802,2]
[351980485,1738866672153,-500.0,0.00017802,2]
[351980486,1738866672163,-500.0,0.00017802,2]
[351980487,1738866672173,-500.0,0.00017802,2]
[351980488,1738866672183,-500.0,0.00017802,2]
[351980489,1738866672193,-500.0,0.00017802,2]
[351980490,1738866672203,-500.0,0.00017802,2]
[351980491,1738866672213,-657.4,0.00017802,2]
[351980492,1738866672223,-1028.51,0.00017802,2]
[351980493,1738866672234,-557.23,0.00017802,2]
[351980494,1738866672244,-913.22,0.00017802,2]
[351980495,1738866672254,-1460.61,0.00017802,2]
[351980496,1738866672266,-942.03,0.00017802,2]
[351980497,1738866672277,-1349.04,0.00017802,2]
[351980498,1738866672287,-249.92280226,0.00017802,2]
[351980499,1738866672299,-2044.93,0.00017802,2]
[351980500,1738866672309,-1093.42,0.00017802,2]
[351980501,1738866672319,-1136.07,0.00017802,2]
[351980502,1738866672329,-199.169216,0.00017802,2]
[351980503,1738866672339,-500.0,0.00017802,2]
[351980504,1738866672349,-1372.49,0.00017802,2]
[351980505,1738866672359,-792.46,0.00017802,2]
[351980506,1738866672370,-500.0,0.00017802,2]
[351980507,1738866672380,-746.98,0.00017802,2]
[351980508,1738866672391,-1643.24,0.00017802,2]
[351980509,1738866672401,-1549.95,0.00017802,2]
[351980510,1738866672411,-583.9,0.00017802,2]
[351980511,1738866672421,-942.67,0.00017802,2]
[351980512,1738866672431,-2419.41,0.00017802,2]
[351980513,1738866672442,-966.91,0.00017802,2]
[351980514,1738866672452,-2612.15,0.00017802,2]
[351980515,1738866672462,-808.88,0.00017802,2]
[351980516,1738866672472,-204.110967,0.00017802,2]
[351980517,1738866672483,-1149.7,0.00017802,2]
[351980518,1738866672493,-1041.66,0.00017802,2]
[351980519,1738866672504,-500.0,0.00017802,2]
[351980520,1738866672516,-1330.48,0.00017802,2]
[351980521,1738866672527,-1604.53,0.00017802,2]
[351980522,1738866672537,-531.94,0.00017802,2]
[351980523,1738866672548,-1401.73,0.00017802,2]
[351980524,1738866672558,-1589.88,0.00017802,2]
[351980525,1738866672568,-850.56,0.00017802,2]
[351980526,1738866672578,-1104.05,0.00017802,2]
[351980527,1738866672589,-5370.59,0.00017802,2]
[351980528,1738866672598,-1453.98,0.00017802,2]
[351980529,1738866672609,-1194.2,0.00017802,2]
[351980530,1738866672619,-566.05,0.00017802,2]
[351980531,1738866672629,-1388.6,0.00017802,2]
[351980532,1738866672640,-1308.07,0.00017802,2]
[351980533,1738866672650,-1399.15,0.00017802,2]
[351980534,1738866672660,-500.0,0.00017802,2]
[351980535,1738866672670,-1254.63,0.00017802,2]
[351980536,1738866672681,-2225.02,0.00017802,2]
[351980537,1738866672691,-915.99,0.00017802,2]
[351980538,1738866672701,-1226.05,0.00017802,2]
[351980539,1738866672712,-2612.35,0.00017802,2]
[351980540,1738866672722,-719.96,0.00017802,2]
[351980541,1738866672732,-500.0,0.00017802,2]
[351980542,1738866672743,-2140.65,0.00017802,2]
[351980543,1738866672753,-1229.76,0.00017802,2]
[351980544,1738866672765,-1649.71,0.00017802,2]
[351980545,1738866672775,-3392.3,0.00017802,2]
[351980546,1738866672786,-500.0,0.00017802,2]
[351980547,1738866672797,-1000.0,0.00017802,2]
[351980548,1738866672808,-500.0,0.00017802,2]
[351980549,1738866672819,-1017.33,0.00017802,2]
[351980550,1738866672829,-561.47315986,0.00017802,2]
[351980551,1738866672839,-500.0,0.00017802,2]
[351980552,1738866672850,-1539.46,0.00017802,2]
[351980553,1738866672861,-1189.78,0.00017802,2]
[351980554,1738866672871,-951.64,0.00017802,2]
[351980555,1738866672883,-2117.54,0.00017802,2]
[351980556,1738866672894,-500.0,0.00017803,2]
[351980557,1738866672904,-513.27,0.00017803,2]
[351980558,1738866672913,-500.0,0.00017803,2]
[351980559,1738866672923,-500.0,0.00017803,2]
[351980560,1738866672933,-500.0,0.00017803,2]
[351980561,1738866672943,-523.24,0.00017803,2]
[351980562,1738866672954,-512.57,0.00017803,2]
[351980563,1738866672964,-500.0,0.00017803,2]
[351980564,1738866672975,-593.34,0.00017803,2]
[351980565,1738866672985,-700.92,0.00017803,2]
[351980566,1738866672994,-530.64,0.00017803,2]
[351980567,1738866673005,-500.0,0.00017803,2]
[351980568,1738866673017,-500.0,0.00017803,2]
[351980569,1738866673027,-500.0,0.00017803,2]
[351980570,1738866673037,-500.0,0.00017803,2]
[351980571,1738866673048,-104.55935968,0.00017803,2]
[351980572,1738866673063,-340.78781791,0.00017803,2]
[351980573,1738866673074,-618.16,0.00017803,2]
[351980574,1738866673085,-500.0,0.00017803,2]
[351980575,1738866673095,-500.0,0.00017803,2]
[351980576,1738866673105,-500.0,0.00017803,2]
[351980577,1738866673115,-500.0,0.00017803,2]
[351980578,1738866673125,-500.0,0.00017803,2]
[351980579,1738866673135,-500.0,0.00017803,2]
[351980580,1738866673146,-500.0,0.00017803,2]
[351980581,1738866673352,-500.0,0.00017803,2]
[351980582,1738866673363,-500.0,0.00017803,2]
[351980583,1738866673373,-500.0,0.00017803,2]
[351980584,1738866673389,-500.0,0.00017803,2]
[351980585,1738866673399,-500.0,0.00017803,2]
[351980586,1738866673409,-500.0,0.00017803,2]
[351980587,1738866673418,-500.0,0.00017803,2]
[351980588,1738866673427,-500.0,0.00017803,2]
[351980589,1738866673437,-500.0,0.00017803,2]
[351980590,1738866673446,-1141.65,0.00017803,2]
[351980591,1738866673463,-500.0,0.00017803,2]
[351980592,1738866673477,-500.0,0.00017803,2]
[351980593,1738866673487,-500.0,0.00017803,2]
[351980594,1738866673497,-621.94697836,0.00017803,2]
[351980595,1738866673507,-547.26,0.00017803,2]
[351980596,1738866673520,-500.0,0.00017803,2]
[351980597,1738866673532,-309.67687644,0.00017803,2]
[351980598,1738866673543,-500.0,0.00017803,2]
[351980599,1738866673553,-500.0,0.00017803,2]
[351980600,1738866673563,-500.0,0.00017803,2]
[351980601,1738866673573,-500.0,0.00017803,2]
[351980602,1738866673583,-500.0,0.00017803,2]
[351980603,1738866673594,-540.35,0.00017803,2]
[351980604,1738866673604,-500.0,0.00017803,2]
[351980605,1738866673615,-500.0,0.00017803,2]
[351980606,1738866673626,-500.0,0.00017803,2]
[351980607,1738866673636,-500.0,0.00017803,2]
[351980608,1738866673646,-630.24,0.00017803,2]
[351980609,1738866673656,-657.81,0.00017803,2]
[351980610,1738866673667,-500.0,0.00017803,2]
[351980611,1738866673678,-500.0,0.00017803,2]
[351980612,1738866673688,-500.0,0.00017803,2]
[351980613,1738866673699,-726.72,0.00017803,2]
[351980614,1738866673709,-500.0,0.00017803,2]
[351980615,1738866673719,-502.89,0.00017803,2]
[351980616,1738866673729,-664.29,0.00017803,2]
[351980617,1738866673738,-847.16,0.00017803,2]
[351980618,1738866673749,-500.0,0.00017803,2]
[351980619,1738866673759,-680.74,0.00017803,2]
[351980620,1738866673773,-500.0,0.00017803,2]
[351980621,1738866673784,-500.0,0.00017803,2]
[351980622,1738866673796,-635.32,0.00017803,2]
[351980623,1738866673806,-500.0,0.00017803,2]
[351980624,1738866673818,-616.68,0.00017803,2]
[351980625,1738866673828,-942.54,0.00017803,2]
[351980626,1738866673838,-514.53,0.00017803,2]
[351980627,1738866673848,-1325.58,0.00017803,2]
[351980628,1738866673858,-616.62,0.00017803,2]
[351980629,1738866673868,-584.06,0.00017803,2]
[351980630,1738866673878,-782.48,0.00017803,2]
[351980631,1738866673889,-952.27,0.00017803,2]
[351980632,1738866673898,-1279.03,0.00017803,2]
[351980633,1738866673908,-563.5,0.00017803,2]
[351980634,1738866673918,-873.47,0.00017803,2]
[351980635,1738866673928,-500.0,0.00017803,2]
[351980636,1738866673938,-811.69,0.00017803,2]
[351980637,1738866673948,-500.0,0.00017803,2]
[351980638,1738866673957,-2078.54,0.00017803,2]
[351980639,1738866673968,-992.68,0.00017803,2]
[351980640,1738866673978,-833.73,0.00017803,2]
[351980641,1738866673987,-1083.2,0.00017803,2]
[351980642,1738866673998,-1317.18,0.00017803,2]
[351980643,1738866674009,-700.98,0.00017803,2]
[351980644,1738866674020,-2735.04,0.00017803,2]
[351980645,1738866674030,-500.0,0.00017803,2]
[351980646,1738866674040,-960.07,0.00017803,2]
[351980647,1738866674050,-589.9,0.00017803,2]
[351980648,1738866674059,-1424.1,0.00017803,2]
[351980649,1738866674069,-1138.61,0.00017803,2]
[351980650,1738866674079,-1582.06,0.00017803,2]
[351980651,1738866674089,-803.99,0.00017803,2]
[351980652,1738866674098,-722.34,0.00017803,2]
[351980653,1738866674109,-500.0,0.00017803,2]
[351980654,1738866674119,-500.0,0.00017803,2]
[351980655,1738866674129,-936.37,0.00017803,2]
[351980656,1738866674139,-1029.92,0.00017803,2]
[351980657,1738866674150,-664.0,0.00017803,2]
[351980658,1738866674159,-1836.69,0.00017803,2]
[351980659,1738866674169,-700.04,0.00017803,2]
[351980660,1738866674179,-500.0,0.00017803,2]
[351980661,1738866674188,-2524.54,0.00017803,2]
[351980662,1738866674198,-500.0,0.00017803,2]
[351980663,1738866674207,-500.0,0.00017803,2]
[351980664,1738866674217,-500.0,0.00017803,2]
[351980665,1738866674226,-1649.27,0.00017803,2]
[351980666,1738866674236,-500.0,0.00017803,2]
[351980667,1738866674246,-843.75,0.00017803,2]
[351980668,1738866674256,-1110.4,0.00017803,2]
[351980669,1738866674268,-1353.54,0.00017803,2]
[351980670,1738866674278,-842.77,0.00017803,2]
[351980671,1738866674287,-908.69,0.00017803,2]
[351980672,1738866674297,-587.68,0.00017803,2]
[351980673,1738866674306,-1257.73,0.00017803,2]
[351980674,1738866674316,-2630.17,0.00017803,2]
[351980675,1738866674326,-1528.25,0.00017803,2]
[351980676,1738866674336,-1242.52,0.00017803,2]
[351980677,1738866674346,-1407.68,0.00017803,2]
[351980678,1738866674356,-877.83,0.00017803,2]
[351980679,1738866674367,-1455.99,0.00017803,2]
[351980680,1738866674377,-500.0,0.00017803,2]
[351980681,1738866674387,-1199.99,0.00017803,2]
[351980682,1738866674397,-739.05,0.00017803,2]
[351980683,1738866674406,-580.86,0.00017804,2]
[351980684,1738866674416,-500.0,0.00017804,2]
[351980685,1738866674426,-1233.51,0.00017804,2]
[351980686,1738866674435,-500.0,0.00017804,2]
[351980687,1738866674445,-528.44,0.00017804,2]
[351980688,1738866674455,-500.0,0.00017804,2]
[351980689,1738866674465,-590.09,0.00017804,2]
[351980690,1738866674474,-851.34,0.00017806,2]
[351980691,1738866674484,-500.0,0.00017807,2]
[351980692,1738866674494,-500.0,0.00017807,2]
[351980693,1738866674504,-462.08594357,0.00017807,2]
[351980694,1738866674515,-500.0,0.00017807,2]
[351980695,1738866674525,-500.0,0.00017807,2]
[351980696,1738866674535,-629.41,0.00017808,2]
[351980697,1738866674546,-1212.13,0.00017808,2]
[351980698,1738866674557,-2191.68,0.00017808,2]
[351980699,1738866674568,-1150.67,0.00017808,2]
[351980700,1738866674578,-1194.7,0.00017808,2]
[351980701,1738866674588,-1670.96,0.00017808,2]
[351980702,1738866674600,-2394.38,0.00017808,2]
[351980703,1738866674611,-1909.88,0.00017808,2]
[351980704,1738866674621,-879.69,0.00017808,2]
[351980705,1738866674632,-1406.63,0.00017808,2]
[351980706,1738866674643,-500.0,0.00017808,2]
[351980707,1738866674653,-1626.57,0.00017808,2]
[351980708,1738866674663,-1052.49,0.00017808,2]
[351980709,1738866674675,-2439.5,0.00017808,2]
[351980710,1738866674685,-1556.35,0.00017808,2]
[351980711,1738866674697,-1571.46,0.00017808,2]
[351980712,1738866674708,-490.0530441,0.00017808,2]
[351980713,1738866674724,-2068.63438604,0.00017808,2]
[351980714,1738866674738,-595.75256986,0.00017808,2]
[351980715,1738866674749,-500.0,0.00017808,2]
[351980716,1738866674760,-1300.22743014,0.00017808,2]
[351980717,1738866674796,-482.50202,0.00017255,2]
[351980718,1738866674809,-17.49798,0.00017255,2]
[351980719,1738866674821,-74.26256986,0.00017808,2]
[351980720,1738866674831,-781.28,0.00017808,2]
[351980721,1738866674844,-962.38,0.00017808,2]
[351980722,1738866674855,-500.0,0.00017808,2]
[351980723,1738866674865,-666.23,0.00017808,2]
[351980724,1738866674877,-442.01953484,0.00017808,2]
[351980725,1738866674902,-500.0,0.00016849,2]
[351980726,1738866674912,-57.98046516,0.00017808,2]
[351980727,1738866674923,-876.98,0.00017808,2]
[351980728,1738866674933,-823.01,0.00017808,2]
[351980729,1738866674943,-752.31,0.00017808,2]
[351980730,1738866674953,-1511.53,0.00017808,2]
[351980731,1738866674963,-150.0,0.00017812,2]
[351980732,1738866674972,-150.0,0.00017812,2]
[351980733,1738866674983,-500.0,0.00017815,2]
[351980734,1738866674993,-1446.79748026,0.00017816,2]
[351980735,1738866675005,-379.20251974,0.00017816,2]
[351980736,1738866675020,-133.07550867,0.00017816,2]
[351980737,1738866675031,-385.29983874,0.00017816,2]
[351980738,1738866675043,-264.62465259,0.00017816,2]
[351980739,1738866675053,-700.95912922,0.00017816,2]
[351980740,1738866675421,-500.0,0.00016438,2]
[351980741,1738866675431,-500.0,0.00016575,2]
[351980742,1738866675440,-500.0,0.00016712,2]
[351980743,1738866675450,-500.0,0.00016843,2]
[351980744,1738866675459,-500.0,0.00016849,2]
[351980745,1738866675468,-500.0,0.0001698,2]
[351980746,1738866675478,-500.0,0.00016986,2]
[351980747,1738866675487,-500.0,0.00017117,2]
[351980748,1738866675497,-500.0,0.00017123,2]
[351980749,1738866675507,-500.0,0.00017254,2]
[351980750,1738866675522,-275.27,0.0001726,2]
[351980751,1738866675535,-224.73,0.0001726,2]
[351980752,1738866675545,-500.0,0.00017391,2]
[351980753,1738866675555,-239.83,0.00017392,2]
[351980754,1738866675567,-260.17,0.00017392,2]
[351980755,1738866675579,-532.92,0.00017397,2]
[351980756,1738866675589,-500.0,0.00017529,2]
[351980757,1738866675599,-500.0,0.00017666,2]
[351980758,1738866675609,-500.0,0.00017803,2]
[351980759,1738866675619,-206.04087078,0.00017816,2]
[351980760,1738866675630,-1264.0,0.00017816,2]
[351980761,1738866675640,-2953.0,0.00017816,2]
[351980762,1738866675650,-539.0,0.00017816,2]
[351980763,1738866675663,-4023.0,0.00017816,2]
[351980764,1738866675676,-248.752,0.00017816,2]
[351980765,1738866675686,-2353.2184002,0.00017816,2]
[351980766,1738866675698,-1557.7815998,0.00017816,2]
[351980767,1738866675709,-2023.0,0.00017816,2]
[351980768,1738866675718,-1272.0,0.00017816,2]
[351980769,1738866675728,-151.0,0.00017816,2]
[351980770,1738866675738,-1108.0,0.00017816,2]
[351980771,1738866675747,-1285.1465299,0.00017818,2]
[351980772,1738866675759,-560.74266915,0.00017818,2]
[351980773,1738866675778,-579.98191395,0.00017818,2]
[351980774,1738866675787,-150.0,0.00017827,2]
[351980775,1738866675796,-150.0,0.00017832,2]
[351980776,1738866675805,-200.0,0.00017844,2]
[351980777,1738866675815,-200.0,0.00017844,2]
[351980778,1738866675825,-200.0,0.00017844,2]
[351980779,1738866675835,-200.0,0.00017844,2]
[351980780,1738866675846,-150.0,0.0001787,2]
[351980781,1738866675857,-22609.515993,0.000179,2]
[351980782,1738866675869,-1000.0,0.000179,6]
[351980783,1738866675879,-372.96457562,0.000179,2]
[351980784,1738866675889,-372.96457562,0.000179,2]
[351980785,1738866675900,-372.96457562,0.000179,2]
[351980786,1738866675910,-372.96457562,0.000179,2]
[351980787,1738866675921,-372.96457562,0.000179,2]
[351980788,1738866675931,-372.96457562,0.000179,2]
[351980789,1738866675941,-372.96457562,0.000179,2]
[351980790,1738866675952,-372.96457562,0.000179,2]
[351980791,1738866675962,-372.96457562,0.000179,2]
[351980792,1738866675972,-372.96457562,0.000179,2]
[351980793,1738866675982,-372.96457562,0.000179,2]
[351980794,1738866675992,-372.96457562,0.000179,2]
[351980795,1738866676002,-372.96457562,0.000179,2]
[351980796,1738866676017,-372.96457562,0.000179,2]
[351980797,1738866676027,-372.96457562,0.000179,2]
[351980798,1738866676036,-372.96457562,0.000179,2]
[351980799,1738866676046,-372.96457562,0.000179,2]
[351980800,1738866676056,-372.96457562,0.000179,2]
[351980801,1738866676065,-372.96457562,0.000179,2]
[351980802,1738866676075,-372.96,0.000179,2]
[351980803,1738866676085,-393.20473964,0.000179,2]
[351980804,1738866676095,-393.20473964,0.000179,2]
[351980805,1738866676104,-393.20473964,0.000179,2]
[351980806,1738866676114,-393.20473964,0.000179,2]
[351980807,1738866676124,-393.20473964,0.000179,2]
[351980808,1738866676134,-393.20473964,0.000179,2]
[351980809,1738866676144,-393.20473964,0.000179,2]
[351980810,1738866676154,-393.20473964,0.000179,2]
[351980811,1738866676164,-393.20473964,0.000179,2]
[351980812,1738866676173,-393.20473964,0.000179,2]
[351980813,1738866676183,-393.20473964,0.000179,2]
[351980814,1738866676193,-393.20473964,0.000179,2]
[351980815,1738866676203,-393.20473964,0.000179,2]
[351980816,1738866676213,-393.20473964,0.000179,2]
[351980817,1738866676222,-393.20473964,0.000179,2]
[351980818,1738866676232,-393.20473964,0.000179,2]
[351980819,1738866676242,-393.20473964,0.000179,2]
[351980820,1738866676251,-393.20473964,0.000179,2]
[351980821,1738866676260,-393.20473964,0.000179,2]
[351980822,1738866676273,-393.2,0.000179,2]
[351980823,1738866676282,-210.93304077,0.000179,2]
[351980824,1738866676294,-509.32968222,0.000179,2]
[351980825,1738866676303,-509.32968222,0.000179,2]
[351980826,1738866676313,-509.32968222,0.000179,2]
[351980827,1738866676323,-509.32968222,0.000179,2]
[351980828,1738866676333,-509.32968222,0.000179,2]
[351980829,1738866676342,-509.32968222,0.000179,2]
[351980830,1738866676352,-509.32968222,0.000179,2]
[351980831,1738866676362,-509.32968222,0.000179,2]
[351980832,1738866676372,-509.32968222,0.000179,2]
[351980833,1738866676381,-509.32968222,0.000179,2]
[351980834,1738866676391,-509.32968222,0.000179,2]
[351980835,1738866676400,-509.32968222,0.000179,2]
[351980836,1738866676409,-509.32968222,0.000179,2]
[351980837,1738866676418,-509.32968222,0.000179,2]
[351980838,1738866676427,-509.32968222,0.000179,2]
[351980839,1738866676437,-509.32968222,0.000179,2]
[351980840,1738866676446,-509.32968222,0.000179,2]
[351980841,1738866676455,-509.32968222,0.000179,2]
[351980842,1738866676465,-509.32968222,0.000179,2]